bitfinex/quotes_SOLUSD_20250922
["timestamp","ask_amount","ask_price","bid_price","bid_amount"]
[1758516564644,7.17552394,232.5,232.45,0.71]
[1758516564821,7.17552394,232.5,232.44,0.2]
[1758516564822,7.17552394,232.5,232.46,0.71]
[1758516566626,7.87552394,232.5,232.46,0.71]
[1758516567325,7.17552394,232.5,232.46,0.71]
[1758516568153,7.85552394,232.5,232.46,0.71]
[1758516569456,7.17552394,232.5,232.46,0.71]
[1758516569840,7.17552394,232.5,232.47,0.66]
[1758516569841,2.87438398,232.5,232.47,0.66]
[1758516571448,2.87438398,232.5,232.48,0.66]
[1758516571959,2.87438398,232.5,232.45,4.30190479]
[1758516572150,2.87438398,232.5,232.46,0.66]
[1758516572336,2.87438398,232.5,232.47,0.66]
[1758516572535,2.87438398,232.5,232.48,0.66]
[1758516572731,2.87438398,232.5,232.46,4.30180496]
[1758516572951,196.38,232.51,232.47,0.66]
[1758516573337,196.38,232.51,232.48,0.66]
[1758516575058,163.4,232.51,232.48,0.66]
[1758516576758,163.4,232.51,232.45,4.30200043]
[1758516576960,163.4,232.51,232.46,0.66]
[1758516577258,163.4,232.51,232.47,0.66]
[1758516577459,163.4,232.51,232.44,10.95518412]
[1758516577460,0.68,232.5,232.44,0.86]
[1758516577662,3.55486976,232.5,232.44,0.86]
[1758516577960,0.18,232.5,232.45,0.66]
[1758516578162,0.18,232.5,232.44,0.2]
[1758516578344,163.4,232.51,232.45,0.66]
[1758516578861,167.70092014,232.51,232.45,0.66]
[1758516579861,32.98,232.5,232.45,0.66]
[1758516580067,37.28113738,232.5,232.45,0.66]
[1758516580360,4.72113738,232.5,232.45,0.66]
[1758516580559,37.70113738,232.5,232.45,0.66]
[1758516581555,37.28113738,232.5,232.46,0.66]
[1758516581761,37.70113738,232.5,232.46,0.66]
[1758516581966,37.28113738,232.5,232.46,0.66]
[1758516583772,37.70113738,232.5,232.44,5.16204404]
[1758516584467,37.70113738,232.5,232.44,4.50204404]
[1758516584664,37.70113738,232.5,232.44,5.16204404]
[1758516585242,33.4,232.5,232.45,4.96197462]
[1758516585755,32.98,232.5,232.46,0.66]
[1758516590754,163.4,232.51,232.46,4.30179312]
[1758516591052,196.38,232.51,232.47,0.66]
[1758516591244,2.8772057,232.5,232.47,0.66]
[1758516591448,132.2,232.51,232.47,0.66]
[1758516592872,132.2,232.51,232.47,4.96145016]
[1758516593068,132.2,232.51,232.47,4.30145016]
[1758516593255,132.2,232.51,232.48,0.66]
[1758516593456,132.2,232.51,232.46,4.30179975]
[1758516593650,136.50100583,232.51,232.44,4.50201354]
[1758516593852,36.25819609,232.5,232.44,0.2]
[1758516594068,2.87819609,232.49,232.44,0.2]
[1758516594258,3.29819609,232.48,232.44,0.2]
[1758516594459,0.42,232.48,232.44,0.2]
[1758516594664,32.96,232.48,232.44,4.50214242]
[1758516594871,37.681092,232.5,232.45,0.66]
[1758516595056,2.87934635,232.49,232.45,0.66]
[1758516595256,2.87934635,232.48,232.45,0.66]
[1758516595560,2.87934635,232.47,232.45,0.66]
[1758516595753,37.681092,232.5,232.45,0.66]
[1758516595975,2.88090905,232.49,232.45,0.66]
[1758516596158,2.88090905,232.48,232.45,0.66]
[1758516596367,2.88090905,232.47,232.45,0.66]
[1758516596567,37.681092,232.5,232.45,0.66]
[1758516596771,2.88189373,232.49,232.45,0.66]
[1758516596967,37.681092,232.5,232.45,0.66]
[1758516596968,2.88189373,232.48,232.45,0.66]
[1758516597174,2.88189373,232.47,232.45,0.66]
[1758516597366,2.88189373,232.46,232.45,0.66]
[1758516597566,37.681092,232.5,232.45,0.66]
[1758516597768,2.88171592,232.49,232.45,0.66]
[1758516597968,2.88171592,232.48,232.45,0.66]
[1758516598167,2.88171592,232.47,232.45,0.66]
[1758516598366,37.681092,232.5,232.45,0.66]
[1758516598570,7.18330637,232.49,232.45,0.66]
[1758516598758,2.8820311,232.48,232.45,0.66]
[1758516599081,2.8820311,232.47,232.45,0.66]
[1758516599282,2.8820311,232.46,232.45,0.66]
[1758516599478,2.8820311,232.46,232.44,0.2]
[1758516599683,4.72135152,232.49,232.44,0.2]
[1758516599883,2.88245405,232.48,232.44,0.87]
[1758516600183,2.88245405,232.47,232.44,0.87]
[1758516600374,2.88245405,232.46,232.44,0.87]
[1758516600564,4.72144659,232.48,232.44,0.2]
[1758516600771,2.88247535,232.47,232.44,0.2]
[1758516601076,2.88247535,232.46,232.44,0.2]
[1758516601274,31.2,232.47,232.44,0.2]
[1758516601482,168.46228798,232.46,232.44,0.2]
[1758516601783,2.88228798,232.45,232.44,0.2]
[1758516602284,3.30228798,232.45,232.44,0.2]
[1758516602861,7.60428841,232.45,232.44,0.2]
[1758516607764,9.32980229,232.45,232.44,0.2]
[1758516608673,40.58428841,232.45,232.44,0.2]
[1758516608886,9.32980229,232.45,232.44,0.2]
[1758516609180,42.30980229,232.45,232.44,0.2]
[1758516609373,40.58428841,232.45,232.44,0.2]
[1758516609683,42.30980229,232.45,232.44,0.2]
[1758516609986,40.58428841,232.45,232.44,0.2]
[1758516610184,7.18428841,232.45,232.44,0.2]
[1758516610368,40.16428841,232.45,232.44,0.2]
[1758516611666,40.58428841,232.45,232.44,0.2]
[1758516612569,40.15839484,232.45,232.44,0.2]
[1758516612768,40.57839484,232.45,232.44,0.2]
[1758516614779,40.15839484,232.45,232.44,0.2]
[1758516616492,40.57839484,232.45,232.44,0.2]
[1758516617198,42.30390872,232.45,232.44,0.2]
[1758516619891,9.32390872,232.45,232.44,0.2]
[1758516620096,40.15839484,232.45,232.44,0.2]
[1758516620396,40.57839484,232.45,232.44,0.2]
[1758516620979,42.30390872,232.45,232.44,0.2]
[1758516623192,41.88390872,232.45,232.44,0.2]
[1758516623389,8.90390872,232.45,232.44,0.2]
[1758516623597,40.15839484,232.45,232.44,0.2]
[1758516623898,41.88383429,232.45,232.44,0.2]
[1758516624604,40.15839484,232.45,232.44,0.2]
[1758516627285,7.17839484,232.45,232.44,0.2]
[1758516627504,40.15839484,232.45,232.44,0.9]
[1758516627680,40.15839484,232.45,232.44,0.2]
[1758516629601,67.05639441,232.45,232.44,0.9]
[1758516630103,71.35839484,232.45,232.44,0.9]
[1758516630304,71.35839484,232.45,232.44,0.2]
[1758516630989,71.35839484,232.45,232.44,0.9]
[1758516631194,71.35839484,232.45,232.44,0.2]
[1758516631711,71.35839484,232.45,232.44,0.9]
[1758516633496,2.87639441,232.45,232.44,0.9]
[1758516633698,34.07639441,232.45,232.44,0.9]
[1758516633903,67.05639441,232.45,232.44,0.9]
[1758516634212,35.85639441,232.45,232.44,0.9]
[1758516635296,40.15839484,232.45,232.44,0.2]
[1758516636308,40.16101088,232.45,232.44,0.2]
[1758516636700,40.58101088,232.45,232.44,0.2]
[1758516636901,40.58101088,232.45,232.41,0.2]
[1758516636902,31.2,232.42,232.41,0.2]
[1758516637107,31.2,232.41,232.36,0.1]
[1758516637312,67.07901045,232.4,232.36,0.1]
[1758516637500,4.30329632,232.38,232.36,0.1]
[1758516637689,40.20230677,232.38,232.36,0.1]
[1758516638092,40.62230677,232.38,232.37,1e-08]
[1758516639989,7.60230677,232.38,232.37,1e-08]
[1758516640192,40.62230677,232.38,232.37,1e-08]
[1758516641105,44.21312569,232.38,232.37,1e-08]
[1758516645117,40.62230677,232.38,232.37,1e-08]
[1758516645905,42.34878885,232.38,232.36,1e-08]
[1758516646110,3.29901045,232.37,232.36,1e-08]
[1758516646511,5.02549253,232.37,232.36,1e-08]
[1758516646818,4.60549253,232.37,232.36,1e-08]
[1758516647336,132.19999999,232.34,232.32,0.7]
[1758516647496,168.09901044,232.33,232.32,0.7]
[1758516648127,174.12971496,232.33,232.32,0.7]
[1758516648517,172.40323288,232.33,232.32,0.7]
[1758516648719,174.12971496,232.33,232.32,0.7]
[1758516649008,31.2,232.31,232.3,0.9]
[1758516649334,64.22,232.31,232.3,0.2]
[1758516649624,67.08746755,232.31,232.3,0.2]
[1758516649824,80.037201,232.31,232.3,0.2]
[1758516650201,84.341794,232.31,232.3,0.2]
[1758516655131,84.341794,232.31,232.3,0.9]
[1758516655318,84.341794,232.31,232.3,0.2]
[1758516657623,4.304593,232.31,232.3,0.9]
[1758516658426,31.2,232.31,232.3,0.4]
[1758516658629,37.38439623,232.33,232.3,0.4]
[1758516658827,31.2,232.31,232.3,0.4]
[1758516659028,40.22961141,232.36,232.3,0.4]
[1758516659332,40.22961141,232.36,232.3,4.70474114]
[1758516659634,40.22961141,232.36,232.25,15.06996769]
[1758516660539,71.42961141,232.36,232.26,0.7]
[1758516661031,71.42961141,232.36,232.27,15.06867007]
[1758516661233,71.42961141,232.36,232.28,0.7]
[1758516663137,71.42961141,232.36,232.29,15.06737267]
[1758516663339,71.42961141,232.36,232.3,0.7]
[1758516663642,203.62961141,232.36,232.3,0.7]
[1758516663845,132.2,232.41,232.3,0.7]
[1758516664021,33.1,232.4,232.3,0.7]
[1758516664225,31.2,232.37,232.3,0.7]
[1758516665328,31.2,232.37,232.31,4.304593]
[1758516665534,31.2,232.37,232.32,0.7]
[1758516665926,31.2,232.4,232.32,0.7]
[1758516666324,33.1,232.42,232.32,0.7]
[1758516666543,31.2,232.39,232.32,0.7]
[1758516667320,31.2,232.39,232.33,4.30422244]
[1758516667520,31.2,232.39,232.34,0.7]
[1758516667817,136.50237188,232.43,232.34,0.7]
[1758516667818,132.2,232.43,232.34,0.7]
[1758516669219,132.2,232.43,232.35,15.0634818]
[1758516669418,132.2,232.43,232.36,0.7]
[1758516669618,31.2,232.46,232.36,0.7]
[1758516670248,35.501835,232.46,232.36,0.7]
[1758516671036,0.67,232.45,232.36,0.7]
[1758516671453,4.30218551,232.44,232.37,4.30348151]
[1758516671638,4.30218551,232.44,232.38,0.71]
[1758516672633,31.2,232.42,232.34,0.71]
[1758516672823,0.67,232.41,232.34,0.71]
[1758516673743,4.30292598,232.4,232.34,0.71]
[1758516674042,35.50292598,232.4,232.34,5.01396858]
[1758516674344,35.50292598,232.4,232.35,0.71]
[1758516674545,35.50292598,232.4,232.34,4.30396858]
[1758516674742,35.50292598,232.4,232.36,0.71]
[1758516675249,35.50292598,232.4,232.32,4.30440771]
[1758516675434,35.50292598,232.4,232.33,0.71]
[1758516675643,132.87,232.39,232.3,5.01465015]
[1758516675845,132.87,232.38,232.3,5.01465015]
[1758516676026,0.67,232.37,232.3,5.01465015]
[1758516676627,4.97362086,232.37,232.31,0.71]
[1758516677622,4.97362086,232.37,232.29,0.71]
[1758516678645,15.73232465,232.37,232.29,0.71]
[1758516679427,4.97362086,232.37,232.29,5.01495273]
[1758516679625,165.3,232.38,232.3,0.71]
[1758516679850,132.2,232.38,232.3,0.71]
[1758516680157,137.17332576,232.38,232.3,0.71]
[1758516680855,137.17332576,232.38,232.3,5.01463759]
[1758516681025,137.17332576,232.38,232.31,0.71]
[1758516681939,132.2,232.38,232.31,0.71]
[1758516682256,136.5033022,232.38,232.31,0.71]
[1758516683167,136.5033022,232.38,232.31,5.01447231]
[1758516683648,0.67,232.37,232.31,0.71]
[1758516683957,136.5033022,232.38,232.31,0.71]
[1758516684736,136.5033022,232.38,232.31,5.01454675]
[1758516685548,137.1733022,232.38,232.31,0.71]
[1758516685755,0.67,232.37,232.31,0.71]
[1758516686645,0.67,232.37,232.31,5.01457627]
[1758516687252,0.67,232.37,232.31,0.71]
[1758516687761,0.67,232.37,232.31,5.01454533]
[1758516687964,136.5033022,232.38,232.32,0.71]
[1758516688962,137.2133022,232.38,232.32,0.71]
[1758516689851,137.2133022,232.38,232.3,0.71]
[1758516690054,0.71,232.37,232.3,0.71]
[1758516690844,4.30366672,232.36,232.3,5.01474712]
[1758516691252,4.30366672,232.36,232.28,4.30497607]
[1758516691456,4.30366672,232.36,232.28,0.71]
[1758516691457,0.71,232.35,232.28,0.71]
[1758516692964,4.30403718,232.34,232.28,0.71]
[1758516693148,5.01403718,232.34,232.28,0.71]
[1758516695765,5.01403718,232.34,232.28,5.01514094]
[1758516696059,4.30403718,232.34,232.29,0.71]
[1758516696257,4.30403718,232.34,232.3,0.71]
[1758516697064,35.50385194,232.35,232.3,0.71]
[1758516697366,31.2,232.35,232.31,0.71]
[1758516697748,31.91,232.35,232.29,4.30490024]
[1758516698066,31.91,232.35,232.29,5.01490024]
[1758516698566,36.21387842,232.35,232.29,5.01490024]
[1758516698870,31.2,232.35,232.3,0.71]
[1758516699053,31.2,232.35,232.29,4.30490024]
[1758516699054,31.2,232.35,232.31,0.71]
[1758516700779,31.2,232.35,232.31,5.01455728]
[1758516700980,31.2,232.35,232.32,0.71]
[1758516701849,132.2,232.38,232.33,0.71]
[1758516702177,2.86993586,232.37,232.33,0.71]
[1758516702363,2.86993586,232.37,232.34,0.71]
[1758516702763,132.2,232.38,232.35,4.30385194]
[1758516702968,132.2,232.38,232.36,0.71]
[1758516703166,132.2,232.38,232.37,0.71]
[1758516704367,132.2,232.38,232.37,5.01348151]
[1758516704567,132.2,232.38,232.37,4.30348151]
[1758516705870,140.0841335,232.38,232.31,0.71]
[1758516706053,2.87082777,232.37,232.31,0.71]
[1758516706250,2.87079672,232.37,232.31,0.71]
[1758516706560,137.21330573,232.38,232.31,0.71]
[1758516706769,2.87085409,232.37,232.31,0.71]
[1758516706967,137.21330573,232.38,232.32,4.30440771]
[1758516707172,2.87085523,232.37,232.32,4.30440771]
[1758516707358,0.71,232.37,232.32,5.01440771]
[1758516709677,132.2,232.38,232.33,0.71]
[1758516709880,2.87115537,232.37,232.33,0.71]
[1758516710079,132.91,232.38,232.33,0.71]
[1758516710281,2.87115278,232.37,232.33,0.71]
[1758516710581,132.91,232.38,232.33,0.71]
[1758516710760,2.87115186,232.37,232.33,0.71]
[1758516710962,132.91,232.38,232.33,5.01421877]
[1758516711167,2.87115137,232.37,232.33,5.01421877]
[1758516711463,132.2,232.38,232.34,0.71]
[1758516711666,2.87107249,232.37,232.35,0.71]
[1758516711864,132.2,232.38,232.35,0.71]
[1758516712163,2.87107363,232.37,232.35,0.71]
[1758516712375,132.2,232.38,232.35,5.01385149]
[1758516712569,2.87111783,232.37,232.35,5.01385149]
[1758516712758,132.2,232.38,232.36,0.71]
[1758516712962,33.06,232.42,232.35,4.30385149]
[1758516713173,2.87148856,232.41,232.36,0.71]
[1758516713373,2.87148856,232.4,232.35,4.30385149]
[1758516713574,2.8715709,232.42,232.37,0.71]
[1758516713772,2.8715709,232.41,232.37,0.71]
[1758516714082,0.71,232.42,232.37,0.71]
[1758516714269,2.87149172,232.41,232.37,5.01337915]
[1758516714469,0.71,232.42,232.37,5.01337915]
[1758516714685,2.87185125,232.41,232.37,5.01337915]
[1758516714873,0.71,232.42,232.37,5.01337915]
[1758516715060,2.87187445,232.41,232.37,5.01337915]
[1758516715263,0.71,232.42,232.37,5.01337915]
[1758516715463,2.87232119,232.41,232.37,5.01337915]
[1758516715685,0.71,232.42,232.37,5.01337915]
[1758516715981,2.87232071,232.41,232.37,5.01337915]
[1758516716169,0.71,232.42,232.37,5.01337915]
[1758516716501,2.87232089,232.41,232.37,5.01337915]
[1758516716704,2.87243061,232.4,232.37,5.01337915]
[1758516716863,0.71,232.42,232.37,5.01337915]
[1758516717063,2.87243174,232.41,232.37,5.01337915]
[1758516717263,2.87243174,232.4,232.37,5.01337915]
[1758516717480,0.71,232.42,232.37,5.01337915]
[1758516717691,2.87259152,232.41,232.37,5.01337915]
[1758516717984,2.87259152,232.4,232.37,5.01337915]
[1758516718182,0.71,232.42,232.37,5.01337915]
[1758516718379,3.55259152,232.41,232.35,4.30377745]
[1758516718586,2.87259152,232.4,232.34,0.68]
[1758516718767,11.44028866,232.41,232.34,0.68]
[1758516718966,2.87239508,232.4,232.34,0.68]
[1758516719291,2.87239508,232.39,232.34,0.68]
[1758516719469,11.44028866,232.41,232.35,0.68]
[1758516719670,2.87184588,232.4,232.35,0.68]
[1758516719870,2.87184588,232.39,232.35,0.68]
[1758516720097,0.68,232.4,232.35,0.68]
[1758516720265,2.87172646,232.39,232.35,0.68]
[1758516720465,0.68,232.4,232.35,0.68]
[1758516720665,2.87179859,232.39,232.35,0.68]
[1758516720886,0.68,232.38,232.32,0.68]
[1758516721087,0.68,232.38,232.3,0.68]
[1758516721392,0.68,232.38,232.29,4.30496362]
[1758516721393,13.63178418,232.37,232.29,4.98496362]
[1758516721597,3.55149552,232.36,232.29,4.98496362]
[1758516721768,0.68,232.36,232.29,4.30496362]
[1758516722083,0.68,232.36,232.3,0.68]
[1758516722474,2.87128245,232.35,232.3,0.68]
[1758516722683,0.68,232.36,232.3,0.68]
[1758516722886,2.87128245,232.35,232.3,0.68]
[1758516723091,0.68,232.35,232.3,0.68]
[1758516723288,31.88,232.34,232.25,4.98570505]
[1758516723594,34.75111535,232.33,232.26,0.68]
[1758516723792,31.88,232.33,232.26,0.68]
[1758516725167,36.18436687,232.33,232.26,4.9854725]
[1758516725891,36.18436687,232.33,232.27,0.68]
[1758516726475,36.18436687,232.33,232.27,4.98533247]
[1758516727291,168.38436687,232.33,232.27,4.98533247]
[1758516727890,0.68,232.32,232.25,4.98565755]
[1758516728284,0.68,232.32,232.26,0.68]
[1758516728493,167.70436687,232.33,232.27,4.3053343]
[1758516728685,167.70436687,232.33,232.27,4.9853343]
[1758516732597,168.38436687,232.33,232.27,4.9853343]
[1758516733511,168.38436687,232.33,232.27,0.68]
[1758516734004,168.38436687,232.33,232.27,4.98533147]
[1758516734709,164.08,232.33,232.27,4.98533147]
[1758516734890,163.4,232.33,232.28,0.68]
[1758516735078,163.4,232.33,232.29,0.68]
[1758516735591,163.4,232.33,232.29,4.98494557]
[1758516735793,164.08,232.33,232.29,4.30494557]
[1758516735990,164.08,232.33,232.27,0.68]
[1758516738100,164.08,232.33,232.28,4.30514895]
[1758516738401,164.08,232.33,232.28,4.98514895]
[1758516738981,163.4,232.33,232.28,4.98514895]
[1758516739214,0.68,232.32,232.28,4.30514895]
[1758516739578,0.68,232.32,232.28,4.98514895]
[1758516739789,163.4,232.33,232.28,4.98514895]
[1758516740202,164.08,232.33,232.28,4.98514895]
[1758516741396,163.4,232.33,232.28,4.98514895]
[1758516741596,0.68,232.32,232.28,4.98514895]
[1758516741804,0.68,232.31,232.26,4.30536409]
[1758516742009,164.08,232.33,232.27,0.68]
[1758516743600,164.08,232.33,232.28,4.30514895]
[1758516743797,164.08,232.33,232.28,4.98514895]
[1758516744510,132.2,232.33,232.29,0.68]
[1758516744806,132.2,232.33,232.28,15.06802134]
[1758516745008,132.2,232.33,232.3,0.68]
[1758516745199,132.2,232.33,232.28,15.74802134]
[1758516745511,132.2,232.33,232.29,0.68]
[1758516745811,132.2,232.33,232.3,4.9847783]
[1758516746813,132.2,232.33,232.3,4.3047783]
[1758516747023,132.2,232.33,232.28,4.30505857]
[1758516747195,132.87,232.33,232.28,4.30505857]
[1758516747703,132.87,232.33,232.28,5.01505857]
[1758516749291,132.2,232.33,232.28,5.01505857]
[1758516749498,0.67,232.32,232.28,4.30505857]
[1758516750413,0.67,232.31,232.26,4.30538666]
[1758516750619,0.67,232.3,232.26,5.01538666]
[1758516750908,136.50431606,232.33,232.26,5.01538666]
[1758516751211,0.67,232.32,232.26,5.01538666]
[1758516752012,0.67,232.31,232.26,4.30538666]
[1758516752215,136.50431606,232.33,232.26,5.01538666]
[1758516752397,0.67,232.32,232.26,5.01538666]
[1758516754617,4.97448937,232.32,232.26,5.01538666]
[1758516755118,0.67,232.31,232.24,12.8775256]
[1758516755303,0.67,232.3,232.24,12.8775256]
[1758516756130,4.97485623,232.3,232.24,12.8775256]
[1758516756423,4.97485623,232.3,232.24,17.18341553]
[1758516758018,4.97485623,232.3,232.24,17.89341553]
[1758516758215,0.67,232.3,232.24,17.18341553]
[1758516758419,163.4,232.33,232.25,0.71]
[1758516759995,163.4,232.33,232.26,4.30551967]
[1758516760199,163.4,232.33,232.27,0.71]
[1758516760420,167.70423867,232.33,232.27,0.71]
[1758516760607,2.86935867,232.32,232.27,0.71]
[1758516760800,0.67,232.32,232.27,0.71]
[1758516762416,4.97442352,232.32,232.27,0.71]
[1758516763305,2.87216066,232.31,232.24,23.64225174]
[1758516763511,0.67,232.31,232.25,5.01570505]
[1758516764427,2.87303755,232.3,232.25,5.01570505]
[1758516764608,0.67,232.3,232.25,5.01570505]
[1758516765822,0.67,232.3,232.25,4.30570505]
[1758516766130,0.67,232.3,232.26,0.71]
[1758516766504,4.97480302,232.3,232.25,4.30570505]
[1758516766827,4.97480302,232.3,232.25,5.01570505]
[1758516769025,4.97440771,232.32,232.26,0.71]
[1758516769220,2.87367662,232.31,232.26,0.71]
[1758516769411,2.87367662,232.3,232.26,0.71]
[1758516769632,12.94638041,232.3,232.26,0.71]
[1758516770002,12.94638041,232.3,232.25,4.30570505]
[1758516770207,12.94638041,232.3,232.26,0.71]
[1758516770428,13.61638041,232.3,232.26,0.71]
[1758516770730,12.94638041,232.3,232.26,0.71]
[1758516771021,0.67,232.29,232.24,13.5875256]
[1758516771407,0.67,232.29,232.24,17.89332263]
[1758516771606,12.94638041,232.3,232.25,0.71]
[1758516771808,12.94638041,232.3,232.26,0.71]
[1758516772437,17.25115968,232.3,232.26,0.71]
[1758516773040,17.92115968,232.3,232.26,0.71]
[1758516773227,17.92115968,232.3,232.25,0.71]
[1758516774102,7.17877121,232.29,232.25,0.71]
[1758516774306,7.17877121,232.29,232.24,17.18332263]
[1758516774307,2.87361627,232.28,232.24,12.8775256]
[1758516774508,0.67,232.28,232.24,12.8775256]
[1758516775021,13.5475256,232.28,232.24,13.5875256]
[1758516775534,12.8775256,232.28,232.24,13.5875256]
[1758516776130,12.8775256,232.28,232.24,12.8775256]
[1758516776430,12.8775256,232.28,232.25,0.71]
[1758516777126,2.87285749,232.27,232.25,0.71]
[1758516777329,17.18267693,232.28,232.25,0.71]
[1758516777631,2.87268598,232.27,232.25,0.71]
[1758516777825,17.18267693,232.28,232.25,0.71]
[1758516778026,2.87268598,232.27,232.25,0.71]
[1758516778234,17.18267693,232.28,232.25,0.71]
[1758516778738,3.5721822,232.27,232.24,0.2]
[1758516778939,0.7,232.27,232.24,0.2]
[1758516779233,0.7,232.26,232.24,0.2]
[1758516779938,17.95415178,232.26,232.24,0.2]
[1758516780632,12.94861558,232.26,232.24,0.2]
[1758516780962,12.94861558,232.26,232.24,0.87]
[1758516781144,12.94861558,232.26,232.24,0.2]
[1758516782428,0.7,232.25,232.24,0.2]
[1758516782754,3.57200569,232.25,232.24,0.2]
[1758516782917,16.52118018,232.25,232.24,0.2]
[1758516783121,12.94917449,232.25,232.24,0.2]
[1758516783522,145.14917449,232.25,232.24,0.2]
[1758516784329,149.45487954,232.25,232.24,0.2]
[1758516784722,152.32710777,232.25,232.24,0.2]
[1758516785536,149.45487954,232.25,232.24,0.2]
[1758516786558,153.02729474,232.25,232.24,0.2]
[1758516787952,184.22729474,232.25,232.24,0.2]
[1758516789245,153.02729474,232.25,232.24,0.2]
[1758516792457,186.04729474,232.25,232.24,0.2]
[1758516794125,216.54729474,232.25,232.24,0.2]
[1758516794330,213.67487954,232.25,232.24,0.2]
[1758516795246,216.54783806,232.25,232.24,0.2]
[1758516798343,183.52783806,232.25,232.24,0.2]
[1758516798855,216.54783806,232.25,232.24,0.2]
[1758516799247,183.52783806,232.25,232.24,0.2]
[1758516799456,216.54783806,232.25,232.24,0.2]
[1758516799756,217.24783806,232.25,232.24,0.2]
[1758516800366,186.04783806,232.25,232.24,0.2]
[1758516801459,53.84783806,232.25,232.24,0.2]
[1758516801650,20.82783806,232.25,232.24,0.2]
[1758516801845,52.02783806,232.25,232.24,0.2]
[1758516802358,53.84783806,232.25,232.24,0.2]
[1758516806065,53.14783806,232.25,232.24,0.2]
[1758516806747,53.84783806,232.25,232.24,0.2]
[1758516807563,53.14783806,232.25,232.24,0.2]
[1758516807766,53.86783806,232.25,232.24,1e-08]
[1758516811654,53.14783806,232.25,232.24,1e-08]
[1758516815682,20.12783806,232.25,232.24,1e-08]
[1758516815963,20.12783806,232.25,232.24,0.68000001]
[1758516816167,53.14783806,232.25,232.24,0.68000001]
[1758516816478,53.14783806,232.25,232.24,1e-08]
[1758516819971,20.12783806,232.25,232.24,1e-08]
[1758516820180,53.14783806,232.25,232.24,1e-08]
[1758516820766,20.12783806,232.25,232.24,1e-08]
[1758516820951,53.14783806,232.25,232.24,1e-08]
[1758516823653,53.14783806,232.25,232.24,0.68000001]
[1758516825349,53.14783806,232.25,232.24,1e-08]
[1758516829769,15.82213301,232.25,232.24,0.68000001]
[1758516829976,2.87295852,232.25,232.24,0.68000001]
[1758516831974,7.17866357,232.25,232.24,0.68000001]
[1758516832152,11.48528392,232.25,232.24,1e-08]
[1758516832555,11.48528392,232.25,232.24,0.68000001]
[1758516833655,12.20528392,232.25,232.24,1e-08]
[1758516833965,15.791404,232.25,232.24,1e-08]
[1758516836560,15.071404,232.25,232.24,1e-08]
[1758516837778,48.091404,232.25,232.24,1e-08]
[1758516838581,44.50528392,232.25,232.24,0.72000001]
[1758516838784,7.17957887,232.25,232.24,0.72000001]
[1758516839086,40.19957887,232.25,232.24,0.72000001]
[1758516839257,7.17957887,232.25,232.24,0.72000001]
[1758516841360,11.48528392,232.25,232.24,0.72000001]
[1758516842465,7.17957887,232.25,232.24,0.72000001]
[1758516844691,2.87295852,232.25,232.24,0.72000001]
[1758516849299,132.2,232.31,232.24,5.02589046]
[1758516849462,2.88431031,232.3,232.24,5.02589046]
[1758516849667,136.50603098,232.31,232.25,0.72]
[1758516849871,2.88437093,232.3,232.25,0.72]
[1758516850070,2.88434528,232.29,232.25,0.72]
[1758516850399,132.2,232.31,232.25,0.72]
[1758516850572,2.8832171,232.3,232.25,0.72]
[1758516850765,132.2,232.31,232.25,0.72]
[1758516851082,2.8832237,232.3,232.25,0.72]
[1758516851276,77.16582173,232.33,232.25,0.72]
[1758516851613,2.88235766,232.32,232.26,4.30551967]